Workbook

Sheet CALLAO-2018
A6: REPORTE DE EJECUCIÓN PRESUPUESTAL DEL PP PTCD 0051 (ámbito educativo y familiar): POR GENÉRICA DE GASTO 2.3 Y 2.6, ESPECÍFICA DE GASTO Y POR TODA FUENTE DE FINACIAMIENTO (año 2018)
A7: AL 31 /05/18
A8: UNIDAD EJECUTORA | B8: ACTIVIDAD | C8: FUENTE DE FINANCIAMIENTO | D8: GENÉRICA DE GASTO | E8: ESPECÍFICA DE GASTO | F8: PIA | G8: PIM | T8: SIAF
H9: m01 | I9: m02 | J9: m03 | K9: m04 | L9: m05 | M9: m06 | N9: m07 | O9: m08 | P9: m09 | Q9: m10 | R9: m11 | S9: m12 | T9: CERTIFICACIÓN | U9: COMPROMISO ANUAL | V9: EJECUCION | W9: % CERTIFICACIÓN SIAF/PIM | X9: % COMPROMISO ANUAL SIAF/PIM | Y9: % EJECUCIÓN
A10: 300 | B10: 5005229 | C10: 1 | D10: 23 | E10: 23 1 5 1 2 | F10: 0 | G10: 6500 | H10: 0 | I10: 0 | J10: 0 | K10: 0 | L10: 3046 | M10: 0 | N10: 0 | O10: 0 | P10: 0 | Q10: 0 | R10: 0 | S10: 0 | T10: =+SUM(H10:S10) -> 3046 | U10: 3046 | V10: 3046 | W10: =+T10/G10 -> 0.4686153846 | X10: =+U10/G10 -> 0.4686153846 | Y10: =+V10/G10 -> 0.4686153846
A11: 300 | B11: 5005229 | C11: 1 | D11: 23 | E11: 23 1 9 1 2 | F11: 0 | G11: 13000 | H11: 0 | I11: 0 | J11: 0 | K11: 0 | L11: 11214.21 | M11: 0 | N11: 0 | O11: 0 | P11: 0 | Q11: 0 | R11: 0 | S11: 0 | T11: 11214.21 | U11: 11214.21 | V11: 0 | W11: =+T11/G11 -> 0.8626315385 | X11: =+U11/G11 -> 0.8626315385 | Y11: =+V11/G11 -> 0
A12: 300 | B12: 5005229 | C12: 1 | D12: 23 | E12: 23 2 1 299 | F12: 0 | G12: 60345 | H12: 0 | I12: 0 | J12: 0 | K12: 0 | L12: 0 | M12: 0 | N12: 0 | O12: 0 | P12: 0 | Q12: 0 | R12: 0 | S12: 0 | T12: 0 | U12: 0 | V12: 0 | W12: 0 | X12: 0 | Y12: 0
A13: 300 | B13: 5005229 | C13: 1 | D13: 23 | E13: 23 2 2 4 4 | F13: 0 | G13: 13000 | H13: 0 | I13: 0 | J13: 0 | K13: 12950 | L13: 0 | M13: 0 | N13: 0 | O13: 0 | P13: 0 | Q13: 0 | R13: 0 | S13: 0 | T13: 12950 | U13: 12950 | V13: 12950 | W13: 0.9961538462 | X13: 0.9961538462 | Y13: 0.9961538462
A14: 300 | B14: 5005229 | C14: 1 | D14: 23 | E14: 23 2 7 3 2 | F14: 0 | G14: 7000 | H14: 0 | I14: 0 | J14: 0 | K14: 0 | L14: 3000 | M14: 0 | N14: 0 | O14: 0 | P14: 0 | Q14: 0 | R14: 0 | S14: 0 | T14: 3000 | U14: 3000 | V14: 0 | W14: 0.4285714286 | X14: 0.4285714286 | Y14: 0
A15: 300 | B15: 5005229 | C15: 1 | D15: 23 | E15: 23 2 71199 | F15: 200000 | G15: 98655 | H15: 30000 | I15: 0 | J15: 0 | K15: 0 | L15: 39284 | M15: 0 | N15: 0 | O15: 0 | P15: 0 | Q15: 0 | R15: 0 | S15: 0 | T15: 69284 | U15: 69284 | V15: 12000 | W15: 0.7022857432 | X15: 0.7022857432 | Y15: 0.1216360043
A16: TOTAL 23 AMBITO FAM RO | F16: =SUM(F10:F15) -> 200000 | G16: 198500 | H16: 30000 | I16: 0 | J16: 0 | K16: 12950 | L16: 56544.21 | M16: 0 | N16: 0 | O16: 0 | P16: 0 | Q16: 0 | R16: 0 | S16: 0 | T16: 99494.21 | U16: 99494.21 | V16: 27996 | W16: 0.5012302771 | X16: 0.5012302771 | Y16: 0.1410377834
A17: 300 | B17: 5005230 | C17: 1 | D17: 23 | E17: 23 1 5 1 2 | F17: 0 | G17: 13000 | H17: 0 | I17: 0 | J17: 0 | K17: 8027.92 | L17: 0 | M17: 0 | N17: 0 | O17: 0 | P17: 0 | Q17: 0 | R17: 0 | S17: 0 | T17: 8027.92 | U17: 8027.92 | V17: 8027.92 | W17: 0.6175323077 | X17: 0.6175323077 | Y17: 0.6175323077
A18: 300 | B18: 5005230 | C18: 1 | D18: 23 | E18: 23 2 1 299 | F18: 0 | G18: 15100 | H18: 0 | I18: 0 | J18: 0 | K18: 0 | L18: 0 | M18: 0 | N18: 0 | O18: 0 | P18: 0 | Q18: 0 | R18: 0 | S18: 0 | T18: 0 | U18: 0 | V18: 0 | W18: 0 | X18: 0 | Y18: 0
A19: 300 | B19: 5005230 | C19: 1 | D19: 23 | E19: 23 2 2 4 4 | F19: 0 | G19: 3200 | H19: 0 | I19: 0 | J19: 0 | K19: 0 | L19: 0 | M19: 0 | N19: 0 | O19: 0 | P19: 0 | Q19: 0 | R19: 0 | S19: 0 | T19: 0 | U19: 0 | V19: 0 | W19: 0 | X19: 0 | Y19: 0
A20: 300 | B20: 5005230 | C20: 1 | D20: 23 | E20: 23 2 4 1 5 | F20: 0 | G20: 16000 | H20: 0 | I20: 0 | J20: 0 | K20: 9500 | L20: 0 | M20: 0 | N20: 0 | O20: 0 | P20: 0 | Q20: 0 | R20: 0 | S20: 0 | T20: 9500 | U20: 9500 | V20: 9500 | W20: 0.59375 | X20: 0.59375 | Y20: 0.59375
A21: 300 | B21: 5005230 | C21: 1 | D21: 23 | E21: 23 2 7 299 | F21: 0 | G21: 13840 | H21: 0 | I21: 0 | J21: 0 | K21: 3460 | L21: 6920 | M21: 0 | N21: 0 | O21: 0 | P21: 0 | Q21: 0 | R21: 0 | S21: 0 | T21: 10380 | U21: 10380 | V21: 10380 | W21: 0.75 | X21: 0.75 | Y21: 0.75
A22: 300 | B22: 5005230 | C22: 1 | D22: 23 | E22: 23 2 71199 | F22: 571349 | G22: 161209 | H22: 59000 | I22: 7900 | J22: 17760 | K22: 31862.28 | L22: 4046 | M22: 0 | N22: 0 | O22: 0 | P22: 0 | Q22: 0 | R22: 0 | S22: 0 | T22: 120568.28 | U22: 120568.28 | V22: 68367.28 | W22: 0.7479004274 | X22: 0.7479004274 | Y22: 0.4240909627
A23: 300 | B23: 5005230 | C23: 1 | D23: 23 | E23: 23 2 8 1 1 | F23: 307496 | G23: 645496 | H23: 307496 | I23: 0 | J23: 0 | K23: 0 | L23: 0 | M23: 0 | N23: 0 | O23: 0 | P23: 0 | Q23: 0 | R23: 0 | S23: 0 | T23: 307496 | U23: 307496 | V23: 212245.95 | W23: 0.4763716584 | X23: 0.4763716584 | Y23: 0.3288106355
A24: 300 | B24: 5005230 | C24: 1 | D24: 23 | E24: 23 2 8 1 2 | F24: 11898 | G24: 20898 | H24: 11898 | I24: 0 | J24: 0 | K24: 0 | L24: 0 | M24: 0 | N24: 0 | O24: 0 | P24: 0 | Q24: 0 | R24: 0 | S24: 0 | T24: 11898 | U24: 11898 | V24: 7922 | W24: 0.5693367786 | X24: 0.5693367786 | Y24: 0.3790793377
A25: TOTAL 23 AMBITO ERDUCATIVO RO | F25: =SUM(F17:F24) -> 890743 | G25: =SUM(G17:G24) -> 888743 | H25: 378394 | I25: 7900 | J25: 17760 | K25: 52850.2 | L25: 10966 | M25: 0 | N25: 0 | O25: 0 | P25: 0 | Q25: 0 | R25: 0 | S25: 0 | T25: 467870.2 | U25: 467870.2 | V25: 316443.15 | W25: 0.526440377 | X25: 0.526440377 | Y25: 0.3560569816
A26: 300 | B26: 5005230 | C26: 4 | D26: 23 | E26: 23 1 5 1 1 | F26: 0 | G26: 15000 | H26: 0 | I26: 0 | J26: 0 | K26: 0 | L26: 0 | M26: 0 | N26: 0 | O26: 0 | P26: 0 | Q26: 0 | R26: 0 | S26: 0 | T26: 0 | U26: 0 | V26: 0 | W26: 0 | X26: 0 | Y26: 0
A27: 300 | B27: 5005230 | C27: 4 | D27: 23 | E27: 23 1 5 1 2 | F27: 0 | G27: 55000 | H27: 0 | I27: 0 | J27: 0 | K27: 0 | L27: 0 | M27: 0 | N27: 0 | O27: 0 | P27: 0 | Q27: 0 | R27: 0 | S27: 0 | T27: 0 | U27: 0 | V27: 0 | W27: 0 | X27: 0 | Y27: 0
A28: 300 | B28: 5005230 | C28: 4 | D28: 23 | E28: 23 1 5 3 1 | F28: 0 | G28: 3800 | H28: 0 | I28: 0 | J28: 0 | K28: 0 | L28: 0 | M28: 0 | N28: 0 | O28: 0 | P28: 0 | Q28: 0 | R28: 0 | S28: 0 | T28: 0 | U28: 0 | V28: 0 | W28: 0 | X28: 0 | Y28: 0
A29: 300 | B29: 5005230 | C29: 4 | D29: 23 | E29: 23 1 9 1 2 | F29: 0 | G29: 73316 | H29: 0 | I29: 0 | J29: 5708.71 | K29: 29291.82 | L29: 225.43 | M29: 0 | N29: 0 | O29: 0 | P29: 0 | Q29: 0 | R29: 0 | S29: 0 | T29: 35225.96 | U29: 35225.96 | V29: 35000.53 | W29: 0.4804675651 | X29: 0.4804675651 | Y29: 0.4773927928
A30: 300 | B30: 5005230 | C30: 4 | D30: 23 | E30: 23 111 1 1 | F30: 0 | G30: 3534 | H30: 0 | I30: 0 | J30: 0 | K30: 2700 | L30: 0 | M30: 0 | N30: 0 | O30: 0 | P30: 0 | Q30: 0 | R30: 0 | S30: 0 | T30: 2700 | U30: 2700 | V30: 2700 | W30: 0.7640067912 | X30: 0.7640067912 | Y30: 0.7640067912
A31: 300 | B31: 5005230 | C31: 4 | D31: 23 | E31: 23 2 2 4 4 | F31: 0 | G31: 201369 | H31: 0 | I31: 0 | J31: 26550 | K31: 3611 | L31: 1200 | M31: 0 | N31: 0 | O31: 0 | P31: 0 | Q31: 0 | R31: 0 | S31: 0 | T31: 31361 | U31: 31361 | V31: 31361 | W31: 0.1557389668 | X31: 0.1557389668 | Y31: 0.1557389668
A32: 300 | B32: 5005230 | C32: 4 | D32: 23 | E32: 23 2 4 1 5 | F32: 0 | G32: 6000 | H32: 0 | I32: 0 | J32: 0 | K32: 0 | L32: 0 | M32: 0 | N32: 0 | O32: 0 | P32: 0 | Q32: 0 | R32: 0 | S32: 0 | T32: 0 | U32: 0 | V32: 0 | W32: 0 | X32: 0 | Y32: 0
A33: 300 | B33: 5005230 | C33: 4 | D33: 23 | E33: 23 2 7 299 | F33: 0 | G33: 72660 | H33: 0 | I33: 0 | J33: 0 | K33: 0 | L33: 0 | M33: 0 | N33: 0 | O33: 0 | P33: 0 | Q33: 0 | R33: 0 | S33: 0 | T33: 0 | U33: 0 | V33: 0 | W33: 0 | X33: 0 | Y33: 0
A34: 300 | B34: 5005230 | C34: 4 | D34: 23 | E34: 23 2 71199 | F34: 0 | G34: 479433 | H34: 0 | I34: 0 | J34: 17662.6 | K34: 73970.4 | L34: 10950 | M34: 0 | N34: 0 | O34: 0 | P34: 0 | Q34: 0 | R34: 0 | S34: 0 | T34: 102583 | U34: 102583 | V34: 102583 | W34: 0.2139673322 | X34: 0.2139673322 | Y34: 0.2139673322
A35: 300 | B35: 5005230 | C35: 4 | D35: 26 | E35: 26 3 2 1 1 | F35: 0 | G35: 18000 | H35: 0 | I35: 0 | J35: 0 | K35: 4515.33 | L35: 0 | M35: 0 | N35: 0 | O35: 0 | P35: 0 | Q35: 0 | R35: 0 | S35: 0 | T35: 4515.33 | U35: 4515.33 | V35: 4515.33 | W35: 0.2508516667 | X35: 0.2508516667 | Y35: 0.2508516667
A36: 300 | B36: 5005230 | C36: 4 | D36: 26 | E36: 26 3 2 1 2 | F36: 0 | G36: 12000 | H36: 0 | I36: 0 | J36: 0 | K36: 0 | L36: 0 | M36: 0 | N36: 0 | O36: 0 | P36: 0 | Q36: 0 | R36: 0 | S36: 0 | T36: 0 | U36: 0 | V36: 0 | W36: 0 | X36: 0 | Y36: 0
A37: 300 | B37: 5005230 | C37: 4 | D37: 26 | E37: 26 3 2 2 1 | F37: 0 | G37: 9000 | H37: 0 | I37: 0 | J37: 0 | K37: 0 | L37: 0 | M37: 0 | N37: 0 | O37: 0 | P37: 0 | Q37: 0 | R37: 0 | S37: 0 | T37: 0 | U37: 0 | V37: 0 | W37: 0 | X37: 0 | Y37: 0
A38: 300 | B38: 5005230 | C38: 4 | D38: 26 | E38: 26 3 2 2 2 | F38: 0 | G38: 3000 | H38: 0 | I38: 0 | J38: 0 | K38: 0 | L38: 0 | M38: 0 | N38: 0 | O38: 0 | P38: 0 | Q38: 0 | R38: 0 | S38: 0 | T38: 0 | U38: 0 | V38: 0 | W38: 0 | X38: 0 | Y38: 0
A39: 300 | B39: 5005230 | C39: 4 | D39: 26 | E39: 26 3 2 3 1 | F39: 0 | G39: 102060 | H39: 0 | I39: 0 | J39: 0 | K39: 6900 | L39: 12741.17 | M39: 0 | N39: 0 | O39: 0 | P39: 0 | Q39: 0 | R39: 0 | S39: 0 | T39: 19641.17 | U39: 19641.17 | V39: 19641.17 | W39: 0.1924472859 | X39: 0.1924472859 | Y39: 0.1924472859 | AA39: CALLAO | AB39: 24.71
A40: 300 | B40: 5005230 | C40: 4 | D40: 26 | E40: 26 3 2 3 3 | F40: 0 | G40: 44720 | H40: 0 | I40: 0 | J40: 0 | K40: 0 | L40: 0 | M40: 0 | N40: 0 | O40: 0 | P40: 0 | Q40: 0 | R40: 0 | S40: 0 | T40: 0 | U40: 0 | V40: 0 | W40: 0 | X40: 0 | Y40: 0 | AA40: VENTANILLA | AB40: 87.45
A41: TOTAL 23 Y 26 AMBITO EDUCATIVO DY T | F41: =SUM(F26:F40) -> 0 | G41: =SUM(G26:G40) -> 1098892 | H41: 0 | I41: 0 | J41: 49921.31 | K41: 120988.55 | L41: 25116.6 | M41: 0 | N41: 0 | O41: 0 | P41: 0 | Q41: 0 | R41: 0 | S41: 0 | T41: 196026.46 | U41: 196026.46 | V41: 195801.03 | W41: 0.1783855556 | X41: 0.1783855556 | Y41: 0.1781804126
A42: TOTAL | F42: =SUM(F10:F15,F17:F24,F26:F40) -> 1090743 | G42: =SUM(G10:G15,G17:G24,G26:G40) -> 2186135 | H42: =SUM(H10:H15,H17:H24,H26:H40) -> 408394 | I42: 7900 | J42: 67681.31 | K42: 186788.75 | L42: 92626.81 | M42: 0 | N42: 0 | O42: 0 | P42: 0 | Q42: 0 | R42: 0 | S42: 0 | T42: 763390.87 | U42: 763390.87 | V42: 540240.18 | W42: =+T42/G42 -> 0.3491965821 | X42: =+U42/G42 -> 0.3491965821 | Y42: =+V42/G42 -> 0.247121143
A44: Fuente: REPORTE SIAF 2018 AL 31 05 18
A45: Análisis:
A46: Callao - DREC
A47: En las especificas de gasto 2.3 por la fuente de financiamiento de recursos ordinarios presenta una ejecucion de S/27,996 que representa una ejecucion del 14.10% en el ambito familiar por concepto de adquisicion de utiles y materiales de oficina
A49: En las especificas de gasto 2.3 por la fuente de financiamiento de recursos ordinarios presenta una ejecucion de S/316,443.15 que representa una ejecucion del 35.61% de ejecucion en el ambito educativo por concepto de adquisicion de utiles y materiales de oficina
A51: En las especificas de gasto 2.3 Y 2.6 por la fuente de financiamiento de Donaciones y transferencias presenta una ejecucion de S/195,801.03 que representa una ejecucion del 17.82 % de ejecucion en el ambito educativo por concepto de adquisicion de utiles y materiales de oficina
A61: Nota: Elaborar un gráfico en el que se visualice el porcentaje de ejecución presupuestal del programa presupuestal: Por toda fuente de financiamiento, genérica de gasto, por UE y total del programa presupuestal.

Sheet VENTANILLA-2018
C2: REPORTE DE EJECUCIÓN PRESUPUESTAL DEL PP PTCD 0051 (ámbito educativo y familiar): POR GENÉRICA DE GASTO 2.3 Y 2.6, ESPECÍFICA DE GASTO Y POR TODA FUENTE DE FINACIAMIENTO (año 2018)
C4: UNIDAD EJECUTORA | D4: ACTIVIDAD | E4: FUENTE DE FINANCIAMIENTO | F4: GENÉRICA DE GASTO | G4: ESPECÍFICA DE GASTO | H4: PIA | I4: PIM | J4: SIAF
J5: CERTIFICACIÓN | K5: COMPROMISO ANUAL | L5: EJECUCIÓN | M5: % CERTIFICACIÓN SIAF/PIM | N5: % COMPROMISO ANUAL SIAF/PIM | O5: % EJECUCIÓN
C6: 302 EDUCACION VENTANILA | D6: 5005229 PREVENCION CONSUMO DE DROGAS EN EL AMBITO FAMILIAR | E6: 1 RECURSOS ORDINARIOS | F6: 23 BIENES Y SERVICIOS | G6: 23.15.12 Papeleria ,utiles | H6: 0 | I6: 1500 | J6: 1500 | K6: 1500 | L6: 1500 | M6: =J6/I6 -> 1 | N6: =K6/I6 -> 1 | O6: =L6/I6 -> 1
C7: 302 EDUCACION VENTANILA | D7: 50052230PREVENCION CONSUMO DE DROGAS EN EL AMBITO EDUCATIVO | E7: 1 RECURSOS ORDINARIOS | F7: 23 BIENES Y SERVICIOS | G7: 23.15.12 Papeleria ,utiles | H7: 0 | I7: 2000 | J7: 1999.78 | K7: 1999.78 | L7: 1999.78 | M7: 0.99989 | N7: 0.99989 | O7: 0.99989
D8: TOTAL FUENTE 1 | H8: =+H6+H7 -> 0 | I8: =+I6+I7 -> 3500 | J8: =+J6+J7 -> 3499.78 | K8: 3499.78 | L8: 3499.78 | M8: 0.9999371429 | N8: 0.9999371429 | O8: 0.9999371429
C9: 302 EDUCACION VENTANILLA | D9: 5005230 PREVENCION DEL CONSUMO DE DROGAS EN EL AMBITO EDUCATIVO | E9: 4 DONACIONES Y TRANSFERENCIAS | F9: 23 BIENES Y SERVICIOS | G9: 23.19.12 Material Didactico | H9: 0 | I9: 10000 | J9: 10000 | K9: 10000 | L9: 10000 | M9: 1 | N9: 1 | O9: 1 | Q9: AMBITO FAMILIAR RO
G10: 23.1.11.11 Para edificios y estructuras | H10: 0 | I10: 2000 | J10: 2000 | K10: 2000 | L10: 2000 | M10: 1 | N10: 1 | O10: 1
G11: 23.22.44 Servicio de Impresiones | H11: 0 | I11: 25000 | J11: 25000 | K11: 25000 | L11: 25000 | M11: 1 | N11: 1 | O11: 1
G12: 23.27.11.99 Servicios Diversos | H12: 0 | I12: 41000 | J12: 26500 | K12: 26500 | L12: 26500 | M12: 0.6463414634 | N12: 0.6463414634 | O12: 0.6463414634
D13: SUB TOTAL FUENTE 4 | H13: =+H9+H10+H11+H12 -> 0 | I13: =+I9+I10+I11+I12 -> 78000 | J13: 63500 | K13: 63500 | L13: 63500 | M13: 0.8141025641 | N13: 0.8141025641 | O13: 0.8141025641 | Q13: =SUM(L9:L13) -> 127000 | R13: 2.3 ROAMB FAM | S13: =SUM(Q13) -> 127000
C14: 302 EDUCACION VENTANILLA | D14: 5005230 PREVENCION DEL CONSUMO DE DROGAS EN EL AMBITO EDUCATIVO | E14: 4 DONACIONES Y TRANSFERENCIAS | F14: 26 ADQUISICION DE ACTIVOS NO FINANCIEROS | G14: 26.32.21 Maquinas y Equipos | H14: 0 | I14: 11500 | J14: 11500 | K14: 11500 | L14: 11500 | M14: 1 | N14: 1 | O14: 1 | Q14: AMBITO EDUCATIVO RO
G15: 26.32.31 Equipos computacionales y perifericos | H15: 0 | I15: 8500 | J15: 8500 | K15: 8500 | L15: 8500 | M15: 1 | N15: 1 | O15: 1
G16: 26.32.23 Equipos de telecomunicaciones | H16: 0 | I16: 14000 | J16: 14000 | K16: 14000 | L16: 14000 | M16: 1 | N16: 1 | O16: 1
D17: SUB TOTAL FUENTE 4 | H17: =+H14+H15+H16 -> 0 | I17: =+I14+I15+I16 -> 34000 | J17: 34000 | K17: 34000 | L17: 34000 | M17: 1 | N17: 1 | O17: 1
D18: TOTAL FUENTE 4 | H18: =+H13+H17 -> 0 | I18: =+I13+I17 -> 112000 | J18: 97500 | K18: 97500 | L18: 97500 | M18: 0.8705357143 | N18: 0.8705357143 | O18: 0.8705357143
D20: TOTAL POR TODA FUENTE FINANCIAMIENTO | H20: =+H8+H18 -> 0 | I20: =+I8+I18 -> 115500 | J20: 100999.78 | K20: 100999.78 | L20: 100999.78 | M20: 0.8744569697 | N20: 0.8744569697 | O20: 0.8744569697
C22: Fuente: REPORTE SIAF 2018
C23: Análisis:
C24: UGEL - VENTANILLA | Q24: =SUM(L24:L24) -> 0 | R24: 2.3 AMB EDUC DYT CAP
C25: En las especificas de gasto 2.3 por la fuente de financiamiento de recursos ordinarios presenta una ejecucion de S/1,500 que representa una ejecucion del 100 % en el ambito familiar por concepto de adquisicion de utiles y materiales de oficina
C27: En las especificas de gasto 2.3 por la fuente de financiamiento de recursos ordinarios presenta una ejecucion de S/1999.78 que representa una ejecucion del 100 % de ejecucion en el ambito educativo por concepto de adquisicion de utiles y materiales de oficina
C29: En las especificas de gasto 2.6 por la fuente de financiamiento de Donaciones y transferencias presenta una ejecucion de S/97,500 que representa una ejecucion del 87.45 % de ejecucion en el ambito educativo por concepto de adquisicion de utiles y materiales de oficina
C39: Nota: Elaborar un gráfico en el que se visualice el porcentaje de ejecución presupuestal del programa presupuestal: Por toda fuente de financiamiento, genérica de gasto, por UE y total del programa presupuestal.
